bitfinex/quotes_BTCUSD_20250922
["timestamp","ask_amount","ask_price","bid_price","bid_amount"]
[1758549406502,1.34342752,113160.0,113150.0,0.20509421]
[1758549407331,1.00342752,113160.0,113150.0,0.09385311]
[1758549407975,0.9078279,113160.0,113150.0,0.09385311]
[1758549408187,1.2478279,113160.0,113150.0,0.20509562]
[1758549409696,0.9078279,113160.0,113150.0,0.20509562]
[1758549411377,0.9078279,113160.0,113150.0,0.38185213]
[1758549411583,0.5643189,113160.0,113150.0,0.38383213]
[1758549411798,0.10804309,113160.0,113150.0,0.27552962]
[1758549411987,0.0081024,113170.0,113160.0,0.17674089]
[1758549412250,0.4655544,113170.0,113160.0,0.26590883]
[1758549412457,0.4675344,113170.0,113160.0,0.29804073]
[1758549412677,0.1170884,113170.0,113160.0,0.29804073]
[1758549412893,0.7950624,113170.0,113160.0,0.30098073]
[1758549413119,0.0081024,113170.0,113160.0,0.30098073]
[1758549413324,0.79553034,113170.0,113160.0,0.45991328]
[1758549413559,0.29553034,113170.0,113160.0,0.45991328]
[1758549413795,0.02712719,113170.0,113160.0,0.74670898]
[1758549414022,0.70068,113180.0,113170.0,0.20687718]
[1758549414220,0.37454697,113190.0,113180.0,0.17670966]
[1758549414420,0.64835128,113190.0,113180.0,0.19774855]
[1758549414654,0.05123028,113190.0,113180.0,0.20068855]
[1758549414862,0.53468729,113190.0,113180.0,0.23084045]
[1758549415099,0.53468729,113190.0,113180.0,0.41222493]
[1758549415100,0.77188729,113190.0,113180.0,0.41222493]
[1758549415289,0.27188729,113190.0,113180.0,0.46642152]
[1758549415514,0.27188729,113190.0,113180.0,0.46842152]
[1758549415719,0.27188729,113190.0,113180.0,0.46642152]
[1758549415923,0.27188729,113190.0,113180.0,0.47142152]
[1758549416145,0.29844729,113190.0,113180.0,0.44586152]
[1758549416312,0.29844729,113190.0,113180.0,0.44388152]
[1758549416549,0.29844729,113190.0,113180.0,0.44586152]
[1758549416963,0.03065062,113190.0,113180.0,0.44586152]
[1758549417161,0.01890056,113190.0,113180.0,0.44586152]
[1758549417375,0.25800056,113190.0,113180.0,0.46659152]
[1758549417618,0.2391,113190.0,113180.0,0.44699152]
[1758549418046,0.23872,113190.0,113180.0,0.45009152]
[1758549418259,0.23872,113190.0,113180.0,0.31403704]
[1758549418464,0.00038,113190.0,113180.0,0.10940738]
[1758549418683,0.00038,113190.0,113180.0,0.28611704]
[1758549418913,0.00038,113190.0,113180.0,0.28006888]
[1758549419126,0.00038,113190.0,113180.0,0.28817888]
[1758549419127,0.02355,113190.0,113180.0,0.28817888]
[1758549419345,0.01846767,113190.0,113180.0,0.29127888]
[1758549419554,0.01846767,113190.0,113180.0,0.31398888]
[1758549419767,0.3352452,113200.0,113190.0,0.17669405]
[1758549419977,0.97749194,113200.0,113190.0,0.34823466]
[1758549420187,0.92588594,113200.0,113190.0,0.34823323]
[1758549420400,0.34,113200.0,113190.0,0.37615323]
[1758549420611,0.62688,113200.0,113190.0,0.29541757]
[1758549420813,0.34,113200.0,113190.0,0.58221327]
[1758549421013,0.34,113200.0,113190.0,0.29541757]
[1758549421678,0.341,113200.0,113190.0,0.29541757]
[1758549421892,0.001,113200.0,113190.0,0.29541757]
[1758549422109,0.32008278,113210.0,113200.0,0.20683034]
[1758549422323,0.60018878,113210.0,113200.0,0.29244191]
[1758549422555,0.60018878,113210.0,113200.0,0.31205191]
[1758549422556,0.60056878,113210.0,113200.0,0.31205191]
[1758549422793,0.60052878,113210.0,113200.0,0.11266347]
[1758549422998,0.60052878,113210.0,113200.0,0.28723191]
[1758549422999,0.64245868,113210.0,113200.0,0.28723191]
[1758549423207,0.64245868,113210.0,113200.0,0.0472096]
[1758549424081,0.99689947,113210.0,113200.0,0.0482096]
[1758549424282,0.99689947,113210.0,113200.0,0.11454563]
[1758549424484,0.99689947,113210.0,113200.0,0.29122407]
[1758549424692,0.71005947,113210.0,113200.0,0.22788804]
[1758549424904,0.70967947,113210.0,113200.0,0.23309804]
[1758549425077,0.68650947,113210.0,113200.0,0.23309804]
[1758549425490,0.62961047,113210.0,113200.0,0.23309804]
[1758549426137,0.62999047,113210.0,113200.0,0.29333208]
[1758549426369,0.62999047,113210.0,113200.0,0.0533196]
[1758549426592,0.65316047,113210.0,113200.0,0.0512096]
[1758549426790,0.65316047,113210.0,113200.0,0.11454364]
[1758549427932,0.61902885,113210.0,113200.0,0.11454364]
[1758549428138,0.61902885,113210.0,113200.0,0.0512096]
[1758549428828,0.61902885,113210.0,113200.0,0.22788804]
[1758549429035,0.64918075,113210.0,113200.0,0.0512096]
[1758549429247,0.64918075,113210.0,113200.0,0.22788804]
[1758549429661,0.64918075,113210.0,113200.0,0.0512096]
[1758549430002,0.67575272,113210.0,113200.0,0.0512096]
[1758549430322,0.67575272,113210.0,113200.0,0.22788804]
[1758549430753,0.67574937,113210.0,113200.0,0.22788804]
[1758549431240,0.67574937,113210.0,113200.0,0.0512096]
[1758549431669,0.67598937,113210.0,113200.0,0.004]
[1758549431858,0.0301519,113200.0,113190.0,0.28676]
[1758549432087,0.0305319,113200.0,113190.0,0.37000599]
[1758549432260,0.14114017,113200.0,113190.0,0.46567907]
[1758549432610,0.16771213,113200.0,113190.0,0.46567907]
[1758549433160,0.05672386,113200.0,113190.0,0.46567907]
[1758549433719,0.05972386,113200.0,113190.0,0.46567907]
[1758549434626,0.39972386,113200.0,113190.0,0.46567907]
[1758549434975,0.51109213,113200.0,113190.0,0.56124654]
[1758549435206,0.51071213,113200.0,113190.0,0.56124654]
[1758549435789,0.39972386,113200.0,113190.0,0.56124654]
[1758549438053,0.39972386,113200.0,113190.0,0.46568907]
[1758549439279,0.40592065,113200.0,113190.0,0.46568907]
[1758549439945,0.40592065,113200.0,113190.0,0.36135914]
[1758549440102,0.40592065,113200.0,113190.0,0.5380926]
[1758549441358,0.41419445,113200.0,113190.0,0.5380926]
[1758549441536,0.41419445,113200.0,113190.0,0.53809319]
[1758549441984,0.41419445,113200.0,113190.0,0.12545285]
[1758549442699,0.41419445,113200.0,113190.0,0.00213]
[1758549442906,0.41630445,113200.0,113190.0,0.00213]
[1758549443132,0.43928445,113200.0,113190.0,0.17882405]
[1758549443335,0.57278635,113200.0,113190.0,0.17882405]
[1758549443533,0.85946635,113200.0,113190.0,0.17882405]
[1758549443887,0.85946635,113200.0,113190.0,0.20466405]
[1758549444080,0.85946635,113200.0,113190.0,0.11123639]
[1758549444279,0.54263445,113200.0,113190.0,0.08853639]
[1758549444477,0.57278635,113200.0,113190.0,0.11123639]
[1758549444820,0.4142052,113200.0,113190.0,0.11123639]
[1758549445031,0.7008852,113200.0,113190.0,0.11123639]
[1758549445244,0.4142052,113200.0,113190.0,0.11123639]
[1758549445444,0.7008852,113200.0,113190.0,0.11127639]
[1758549445659,0.40592065,113200.0,113190.0,0.11127639]
[1758549445873,0.69260065,113200.0,113190.0,0.11127639]
[1758549446435,0.85119255,113200.0,113190.0,0.11127639]
[1758549446956,0.85120899,113200.0,113190.0,0.11127639]
[1758549447427,0.40593709,113200.0,113190.0,0.11127639]
[1758549447597,0.02957196,113200.0,113190.0,0.41574149]
[1758549447798,0.08253191,113200.0,113190.0,0.48334176]
[1758549449624,0.08253191,113200.0,113190.0,0.76998176]
[1758549449921,0.08253191,113200.0,113190.0,0.48318606]
[1758549450109,0.08253191,113200.0,113190.0,0.27785401]
[1758549450373,0.11268381,113200.0,113190.0,0.19258434]
[1758549450598,0.11475381,113200.0,113190.0,0.19258434]
[1758549450810,0.0352219,113200.0,113190.0,0.19258434]
[1758549451032,0.0331519,113200.0,113190.0,0.19258434]
[1758549452057,0.0331519,113200.0,113190.0,0.12092824]
[1758549452258,0.003,113200.0,113190.0,0.12092824]
[1758549452925,0.0381919,113200.0,113190.0,0.12077824]
[1758549453185,0.0613219,113200.0,113190.0,0.12077824]
[1758549453400,0.03117,113200.0,113190.0,0.12077824]
[1758549454978,0.03117,113200.0,113180.0,0.06617311]
[1758549455304,0.3127,113190.0,113180.0,0.17670966]
[1758549455510,0.31477,113190.0,113180.0,0.17670966]
[1758549455737,0.02657197,113190.0,113180.0,0.20110966]
[1758549455937,0.31313197,113190.0,113180.0,0.20110966]
[1758549456142,0.31313197,113190.0,113180.0,0.10555813]
[1758549456544,0.31520197,113190.0,113180.0,0.10540813]
[1758549456921,0.31917197,113190.0,113180.0,0.17670966]
[1758549457118,0.34230197,113190.0,113180.0,0.21293678]
[1758549457548,0.05574197,113190.0,113180.0,0.21293678]
[1758549457762,0.31917197,113190.0,113180.0,0.21293678]
[1758549458202,0.34230197,113190.0,113180.0,0.21293678]
[1758549458557,0.02757197,113190.0,113180.0,0.21308678]
[1758549458760,0.02757197,113190.0,113180.0,0.52413248]
[1758549458961,0.02757197,113190.0,113180.0,0.52422248]
[1758549459166,0.13789197,113190.0,113180.0,0.52422248]
[1758549459585,0.13789197,113190.0,113180.0,0.52413248]
[1758549459751,0.02757197,113190.0,113180.0,0.52413248]
[1758549459966,0.31413197,113190.0,113180.0,0.52413248]
[1758549460783,0.31413197,113190.0,113180.0,0.52422248]
[1758549460984,0.02757197,113190.0,113180.0,0.81101818]
[1758549461372,0.02757197,113190.0,113180.0,0.52422248]
[1758549461797,0.02757197,113190.0,113180.0,0.52413248]
[1758549462435,0.02757197,113190.0,113180.0,0.23733678]
[1758549463789,0.02757197,113190.0,113180.0,0.61930691]
[1758549463995,0.02757197,113190.0,113180.0,0.23733678]
[1758549464232,0.02757197,113190.0,113180.0,0.26748868]
[1758549465032,0.03261197,113190.0,113180.0,0.24308868]
[1758549465239,0.05574197,113190.0,113180.0,0.24308868]
[1758549466354,0.05574197,113190.0,113180.0,0.21293678]
[1758549466550,0.05574197,113190.0,113180.0,0.24308868]
[1758549469270,0.05574197,113190.0,113180.0,0.18052217]
[1758549469394,0.05574197,113190.0,113180.0,0.15380135]
[1758549469800,0.05574197,113190.0,113180.0,0.15395135]
[1758549469801,0.05277197,113190.0,113180.0,0.15395135]
[1758549470000,0.31616197,113190.0,113180.0,0.1436574]
[1758549470212,0.31913197,113190.0,113180.0,0.23126156]
[1758549470640,0.03261197,113190.0,113180.0,0.20701156]
[1758549470842,0.26524197,113190.0,113180.0,0.20701156]
[1758549471042,0.26524197,113190.0,113180.0,0.23126156]
[1758549471380,0.02964197,113190.0,113180.0,0.23126156]
[1758549471727,0.26313197,113190.0,113180.0,0.61332169]
[1758549472096,0.02757197,113190.0,113180.0,0.61332169]
[1758549472288,0.02757197,113190.0,113180.0,0.61323169]
[1758549472490,0.02757197,113190.0,113180.0,0.61332169]
[1758549472908,0.02757197,113190.0,113180.0,0.61323169]
[1758549473076,0.02757197,113190.0,113180.0,0.69859136]
[1758549473272,0.02757197,113190.0,113180.0,1.32507136]
[1758549473273,0.001,113190.0,113180.0,1.32507136]
[1758549473819,0.14808,113210.0,113200.0,0.20683034]
[1758549473983,0.17464608,113210.0,113200.0,0.23123034]
[1758549474424,0.31304608,113210.0,113200.0,0.23123034]
[1758549475229,0.31304608,113210.0,113200.0,0.69856014]
[1758549475230,0.02656608,113210.0,113200.0,0.69856014]
[1758549475606,0.02656608,113210.0,113200.0,0.69956014]
[1758549475865,1.86269694,113220.0,113210.0,0.20681473]
[1758549476076,1.9174302,113220.0,113210.0,0.20681473]
[1758549476280,1.88434454,113220.0,113210.0,0.20681473]
[1758549476480,1.85617454,113220.0,113210.0,0.20696473]
[1758549476708,1.56969454,113220.0,113210.0,0.23121473]
[1758549476907,1.85613454,113220.0,113210.0,0.61327486]
[1758549477233,1.85613454,113220.0,113210.0,0.23130473]
[1758549477433,1.85613454,113220.0,113210.0,0.23421473]
[1758549478594,1.85613454,113220.0,113210.0,0.23521473]
[1758549479192,1.85816454,113220.0,113210.0,0.23521473]
[1758549479634,1.86136454,113220.0,113210.0,0.21081473]
[1758549479825,1.88585454,113220.0,113210.0,0.21081473]
[1758549480383,1.85816454,113220.0,113210.0,0.21096473]
[1758549480585,1.88585454,113220.0,113210.0,0.21081473]
[1758549482640,1.86136454,113220.0,113210.0,0.23425473]
[1758549482944,1.82953128,113220.0,113210.0,0.70158453]
[1758549483293,1.82953128,113220.0,113210.0,0.70149453]
[1758549483733,1.82953128,113220.0,113210.0,0.3195244]
[1758549484049,1.82953128,113220.0,113210.0,0.70149453]
[1758549484256,1.54313128,113220.0,113210.0,0.70149453]
[1758549485800,1.54516128,113220.0,113210.0,0.70149453]
[1758549486023,1.54836128,113220.0,113210.0,0.67805453]
[1758549486194,1.57285128,113220.0,113210.0,0.67805453]
[1758549486365,1.56965128,113220.0,113210.0,0.67820453]
[1758549486573,1.54516128,113220.0,113210.0,0.2962344]
[1758549486775,1.54836128,113220.0,113210.0,0.67805453]
[1758549486974,1.57285128,113220.0,113210.0,0.67805453]
[1758549487146,1.57285128,113220.0,113210.0,0.2960844]
[1758549488035,1.54836128,113220.0,113210.0,0.67820453]
[1758549488520,1.54313128,113220.0,113210.0,0.70149453]
[1758549488961,1.54516128,113220.0,113210.0,0.3195244]
[1758549489174,1.54516128,113220.0,113210.0,0.70149453]
[1758549489483,1.54313128,113220.0,113210.0,0.67820453]
[1758549489739,1.54313128,113220.0,113210.0,0.70149453]
[1758549489970,1.54313128,113220.0,113210.0,0.70158453]
[1758549490199,1.54313128,113220.0,113210.0,0.70149453]
[1758549490730,1.54313128,113220.0,113210.0,0.35286897]
[1758549490954,1.54836128,113220.0,113210.0,0.5823644]
[1758549491175,1.57285128,113220.0,113210.0,0.96433453]
[1758549491897,1.54836128,113220.0,113210.0,0.98777453]
[1758549492222,1.54313128,113220.0,113210.0,0.98777453]
[1758549492431,1.54313128,113220.0,113210.0,1.02184405]
[1758549495173,1.54838128,113220.0,113210.0,0.67805453]
[1758549495362,1.54838128,113220.0,113210.0,0.96429453]
[1758549495363,1.57289128,113220.0,113210.0,0.96429453]
[1758549496082,1.57289128,113220.0,113210.0,0.96444453]
[1758549496505,1.57289128,113220.0,113210.0,0.96429453]
[1758549497123,1.54313128,113220.0,113210.0,0.98801453]
[1758549498095,1.54313128,113220.0,113210.0,0.6060444]
[1758549498244,1.54515128,113220.0,113210.0,0.98801453]
[1758549498440,1.54313128,113220.0,113210.0,0.98801453]
[1758549498666,1.54313128,113220.0,113210.0,0.98810453]
[1758549498884,1.54313128,113220.0,113210.0,0.6061344]
[1758549499075,1.54313128,113220.0,113210.0,0.98810453]
[1758549499274,1.54313128,113220.0,113210.0,0.67820453]
[1758549499510,1.54313128,113220.0,113210.0,0.98797453]
[1758549500711,1.11527758,113220.0,113210.0,0.98806453]
[1758549501499,1.11527758,113220.0,113210.0,0.70177453]
[1758549501738,1.11527758,113220.0,113210.0,1.08345453]
[1758549501884,1.11527758,113220.0,113210.0,0.70186453]
[1758549502100,1.11527758,113220.0,113210.0,0.98793453]
[1758549502739,1.11527758,113220.0,113210.0,0.70177453]
[1758549502941,1.11527758,113220.0,113210.0,1.08345453]
[1758549503192,1.11527758,113220.0,113210.0,1.08354453]
[1758549503417,1.11527758,113220.0,113210.0,1.08401247]
[1758549503608,1.11527758,113220.0,113210.0,1.08392247]
[1758549504818,1.11527758,113220.0,113210.0,0.70224247]
[1758549505040,1.11527758,113220.0,113210.0,1.08392247]
[1758549505241,1.11527758,113220.0,113210.0,1.08388247]
[1758549506336,1.11729758,113220.0,113210.0,1.08388247]
[1758549507004,1.11527758,113220.0,113210.0,0.70224247]
[1758549507154,1.11527758,113220.0,113210.0,0.60639234]
[1758549507353,1.11527758,113220.0,113210.0,0.98836247]
[1758549508081,1.11724758,113220.0,113210.0,0.67867247]
[1758549508287,1.14528758,113220.0,113210.0,0.96464247]
[1758549508817,1.14528758,113220.0,113210.0,0.67852247]
[1758549509367,1.14528758,113220.0,113210.0,0.96460247]
[1758549509617,1.11724758,113220.0,113210.0,0.98950247]
[1758549510263,1.12043758,113220.0,113210.0,0.67852247]
[1758549510431,1.14528758,113220.0,113210.0,0.96460247]
[1758549511425,1.12043758,113220.0,113210.0,0.96460247]
[1758549511669,1.12043758,113220.0,113210.0,0.98935247]
[1758549512101,1.11527758,113220.0,113210.0,0.98950247]
[1758549514448,1.11724758,113220.0,113210.0,0.98950247]
[1758549514674,1.11527758,113220.0,113210.0,0.98950247]
[1758549515339,1.11527758,113220.0,113210.0,0.98959247]
[1758549515953,1.11527758,113220.0,113210.0,0.98950247]
[1758549516582,1.11527758,113220.0,113210.0,0.70342247]
[1758549516784,1.11527758,113220.0,113210.0,1.08498247]
[1758549517309,1.09127758,113220.0,113210.0,1.06023247]
[1758549517487,0.08938899,113220.0,113210.0,1.5170426]
[1758549517690,1e-08,113220.0,113210.0,1.5670426]
[1758549517916,0.06099806,113230.0,113220.0,0.54679913]
[1758549518089,0.06099806,113230.0,113220.0,1.39600906]
[1758549518290,0.06099806,113230.0,113220.0,1.03902893]
[1758549518505,0.03243317,113240.0,113230.0,0.20678353]
[1758549518677,0.03243317,113240.0,113230.0,1.34199346]
[1758549518891,0.03243317,113240.0,113230.0,1.36689346]
[1758549519505,0.05510558,113250.0,113240.0,0.20676793]
[1758549519738,0.05707558,113250.0,113240.0,1.15149786]
[1758549520236,0.05707558,113250.0,113240.0,1.17639786]
[1758549520373,0.05707558,113250.0,113240.0,1.05597786]
[1758549520584,0.08192558,113250.0,113240.0,1.34193786]
[1758549520786,1e-08,113250.0,113240.0,1.40292895]
[1758549521036,1e-08,113250.0,113240.0,1.74301895]
[1758549521362,0.0454338,113290.0,113260.0,0.21556598]
[1758549521626,0.0702838,113290.0,113280.0,0.5886757]
[1758549521843,0.0722538,113290.0,113280.0,0.67394537]
[1758549522016,0.0722538,113290.0,113280.0,1.0549155]
[1758549522442,0.0474038,113290.0,113280.0,1.0550655]
[1758549522650,2.09900499,113300.0,113290.0,0.20668998]
[1758549522858,2.10097499,113300.0,113290.0,1.14945015]
[1758549524115,2.10097499,113300.0,113290.0,0.5777449]
[1758549524321,2.10097499,113300.0,113290.0,0.8636249]
[1758549524547,2.10416499,113300.0,113290.0,0.8636249]
[1758549524978,2.10416499,113300.0,113290.0,1.14941015]
[1758549525598,2.10097499,113300.0,113290.0,1.15151015]
[1758549525811,2.07612499,113300.0,113290.0,1.15151015]
[1758549526039,2.10097499,113300.0,113290.0,1.15151015]
[1758549526217,2.10416499,113300.0,113290.0,1.14941015]
[1758549526923,2.10416499,113300.0,113290.0,1.14937015]
[1758549527219,2.10416499,113300.0,113290.0,0.74812333]
[1758549527429,2.10416499,113300.0,113290.0,0.81349639]
[1758549527608,2.10416499,113300.0,113290.0,0.81549639]
[1758549527986,2.10416499,113300.0,113290.0,1.10128164]
[1758549528187,2.10416499,113300.0,113290.0,0.85164829]
[1758549528389,2.10516499,113300.0,113290.0,0.84364829]
[1758549528850,2.10716499,113300.0,113290.0,1.21470321]
[1758549529007,2.10416499,113300.0,113290.0,1.21470321]
[1758549529203,2.10416499,113300.0,113290.0,0.93591796]
[1758549529403,1.68064079,113300.0,113290.0,1.22380321]
[1758549530228,1.68064079,113300.0,113290.0,1.22170321]
[1758549530617,1.68064079,113300.0,113290.0,1.25185681]
[1758549530825,1.68064079,113300.0,113290.0,1.25395681]
[1758549531195,1.65063079,113300.0,113290.0,1.26195681]
[1758549531351,1.65063079,113300.0,113290.0,1.26495681]
[1758549531560,1.24405848,113300.0,113290.0,1.26495681]
[1758549531928,1.16298783,113300.0,113290.0,1.26495681]
[1758549532266,1.16495783,113300.0,113290.0,1.26495681]
[1758549532665,1.16298783,113300.0,113290.0,1.26495681]
[1758549532882,0.60357698,113300.0,113290.0,1.26798681]
[1758549533080,0.52283719,113300.0,113290.0,1.29273681]
[1758549533283,0.04981584,113300.0,113290.0,1.57852206]
[1758549533484,0.02690416,113300.0,113290.0,1.63272206]
[1758549533689,1e-08,113300.0,113290.0,2.01384206]
[1758549533892,1e-08,113300.0,113290.0,1.34693681]
[1758549534228,0.55411686,113320.0,113310.0,0.20665882]
[1758549534533,0.55411686,113320.0,113310.0,1.15127899]
[1758549534534,0.58093686,113320.0,113310.0,1.15127899]
[1758549534765,0.58093686,113320.0,113310.0,0.86559899]
[1758549534976,0.58093686,113320.0,113310.0,1.15123899]
[1758549534977,0.58412686,113320.0,113310.0,1.15123899]
[1758549535185,0.58093686,113320.0,113310.0,1.15123899]
[1758549535604,0.58093686,113320.0,113310.0,1.15223899]
[1758549535786,0.58412686,113320.0,113310.0,0.86435374]
[1758549536015,0.58412686,113320.0,113310.0,0.57871374]
[1758549536220,0.58412686,113320.0,113310.0,0.86435374]
[1758549537170,0.58412686,113320.0,113310.0,0.86635374]
[1758549537371,0.58412686,113320.0,113310.0,1.15213899]
[1758549537613,0.58412686,113320.0,113310.0,1.15429899]
[1758549537820,0.58412686,113320.0,113310.0,0.86851374]
[1758549538128,0.58093686,113320.0,113310.0,0.86851374]
[1758549538673,0.57919686,113320.0,113310.0,1.15429899]
[1758549538882,0.55411686,113320.0,113310.0,1.15429899]
[1758549539098,0.55411686,113320.0,113310.0,1.15745899]
[1758549539254,0.15044245,113320.0,113310.0,1.18180899]
[1758549539683,0.15044245,113320.0,113310.0,1.27716899]
[1758549540967,0.15548245,113320.0,113310.0,0.86627374]
[1758549541282,0.17859245,113320.0,113310.0,0.58048849]
[1758549541468,0.17859245,113320.0,113310.0,0.55033659]
[1758549541673,0.17859245,113320.0,113310.0,0.46502692]
[1758549541878,0.17859245,113320.0,113310.0,0.75081217]
[1758549542078,0.20513127,113320.0,113310.0,0.75081217]
[1758549542449,0.20513127,113320.0,113310.0,0.46502692]
[1758549542678,0.20513127,113320.0,113310.0,0.17950692]
[1758549542854,0.20513127,113320.0,113310.0,0.46529217]
[1758549542998,0.20513127,113320.0,113310.0,0.20965882]
[1758549543198,0.20513127,113320.0,113310.0,0.49544407]
[1758549543823,0.20513127,113320.0,113310.0,0.20965882]
[1758549544069,0.20513127,113320.0,113310.0,0.49517882]
[1758549544666,0.20513127,113320.0,113310.0,0.78096407]
[1758549545322,0.20513127,113320.0,113310.0,0.49517882]
[1758549545518,0.18202127,113320.0,113310.0,0.78096407]
[1758549545752,0.18202127,113320.0,113310.0,0.49517882]
[1758549545753,0.20513127,113320.0,113310.0,0.49517882]
[1758549546276,0.20513127,113320.0,113310.0,0.49513882]
[1758549546822,0.20513127,113320.0,113310.0,0.20965882]
[1758549547032,0.17859245,113320.0,113310.0,0.49513882]
[1758549548895,0.17859245,113320.0,113310.0,0.20965882]
[1758549549012,0.17859245,113320.0,113310.0,0.49513882]
[1758549549919,0.15240245,113320.0,113310.0,0.86831374]
[1758549550121,0.15240245,113320.0,113310.0,0.58252849]
[1758549550122,0.15044245,113320.0,113310.0,0.58252849]
[1758549550353,0.15044245,113320.0,113310.0,0.87147374]
[1758549550542,0.15240245,113320.0,113310.0,0.86831374]
[1758549550746,0.15240245,113320.0,113310.0,0.58252849]
[1758549550947,0.15240245,113320.0,113310.0,0.86831374]
[1758549553319,0.15240245,113320.0,113310.0,0.83816184]
[1758549553735,0.15240245,113320.0,113310.0,0.86831374]
[1758549554298,0.15044245,113320.0,113310.0,0.89527374]
[1758549555722,0.15044245,113320.0,113310.0,0.89213374]
[1758549555833,0.15044245,113320.0,113310.0,0.89527374]
[1758549556378,0.15044245,113320.0,113310.0,0.87145374]
[1758549556586,0.15044245,113320.0,113310.0,0.89527374]
[1758549558503,0.15044245,113320.0,113310.0,0.60983374]
[1758549558712,0.15044245,113320.0,113310.0,0.60944849]
[1758549558914,0.15044245,113320.0,113310.0,0.89523374]
[1758549559970,0.15044245,113320.0,113310.0,0.58562849]
[1758549559971,0.15248245,113320.0,113310.0,0.58562849]
[1758549560225,0.15248245,113320.0,113310.0,0.86827374]
[1758549560799,0.15044245,113320.0,113310.0,0.89523374]
[1758549561018,0.15044245,113320.0,113310.0,0.60983374]
[1758549561241,0.15044245,113320.0,113310.0,0.89519374]
[1758549561988,0.15044245,113320.0,113310.0,0.92558849]
[1758549562198,0.15044245,113320.0,113310.0,1.23519374]
[1758549563227,0.15044245,113320.0,113310.0,0.94940849]
[1758549563434,0.15044245,113320.0,113310.0,1.23519374]
[1758549564778,0.15044245,113320.0,113310.0,0.94940849]
[1758549564917,0.15044245,113320.0,113310.0,1.23519374]
[1758549565277,0.15044245,113320.0,113310.0,0.89519374]
[1758549565718,0.10501582,113330.0,113320.0,0.20664325]
[1758549565927,0.10501582,113330.0,113320.0,0.89247342]
[1758549566139,0.10501582,113330.0,113320.0,1.23247342]
[1758549566801,0.10501582,113330.0,113320.0,0.66090292]
[1758549566960,0.10501582,113330.0,113320.0,1.23594136]
[1758549567795,0.10501582,113330.0,113320.0,1.24394136]
[1758549568201,0.00225444,113340.0,113330.0,0.17647577]
[1758549568404,0.00225444,113340.0,113330.0,1.27567784]
[1758549568713,0.00225444,113340.0,113330.0,1.61567784]
[1758549569311,0.05376954,113350.0,113340.0,0.5466121]
[1758549569514,0.05376954,113350.0,113340.0,1.23082227]
[1758549569696,0.05376954,113350.0,113340.0,1.23286227]
[1758549570275,0.05376954,113350.0,113340.0,1.51864752]
[1758549570501,0.05376954,113350.0,113340.0,1.23286227]
[1758549571109,0.05376954,113350.0,113340.0,1.23386227]
[1758549571290,0.05376954,113350.0,113340.0,1.23286227]
[1758549571524,0.05376954,113350.0,113340.0,1.2638378]
[1758549571703,0.05376954,113350.0,113340.0,1.5589578]
[1758549571903,0.05376954,113350.0,113340.0,1.6543578]
[1758549572290,0.02727808,113350.0,113340.0,1.6573578]
[1758549572595,0.00078662,113350.0,113340.0,1.6573578]
[1758549572989,1.32550818,113360.0,113350.0,0.49238179]
[1758549573157,1.32550818,113360.0,113350.0,0.86547671]
[1758549573363,1.32550818,113360.0,113350.0,0.89284671]
[1758549573720,0.08625761,113360.0,113350.0,0.70379621]
[1758549573925,0.08625761,113360.0,113350.0,0.98958146]
[1758549574173,0.08625761,113360.0,113350.0,0.32127621]
[1758549574488,0.08625761,113360.0,113350.0,1.27528671]
[1758549574799,0.08625761,113360.0,113350.0,1.18188671]
[1758549574927,0.08625761,113360.0,113350.0,1.27728671]
[1758549575126,0.08625761,113360.0,113350.0,1.27828671]
[1758549576612,0.08625761,113360.0,113350.0,1.18268671]
[1758549576820,0.08625761,113360.0,113350.0,1.27808671]
[1758549577184,0.08625761,113360.0,113350.0,0.89584671]
[1758549577681,0.08625761,113360.0,113350.0,1.18256671]
[1758549577889,0.08625761,113360.0,113350.0,1.27796671]
[1758549579118,0.08625761,113360.0,113350.0,0.61006146]
[1758549579335,0.08821761,113360.0,113350.0,0.98906146]
[1758549579591,0.11401761,113360.0,113350.0,0.96461146]
[1758549579955,0.11401761,113360.0,113350.0,0.29486621]
[1758549580164,0.11401761,113360.0,113350.0,0.86713146]
[1758549580985,0.11401761,113360.0,113350.0,0.58150621]
[1758549581198,0.11401761,113360.0,113350.0,0.86729146]
[1758549581416,0.11401761,113360.0,113350.0,0.29486621]
[1758549581647,0.11401761,113360.0,113350.0,0.86729146]
[1758549581894,0.11401761,113360.0,113350.0,0.93331232]
[1758549582076,0.11401761,113360.0,113350.0,0.93323232]
[1758549582452,0.11401761,113360.0,113350.0,0.64667232]
[1758549582700,0.11401761,113360.0,113350.0,0.93319232]
[1758549582897,0.11401761,113360.0,113350.0,0.64667232]
[1758549583096,0.11401761,113360.0,113350.0,0.93307232]
[1758549583533,0.11401761,113360.0,113350.0,0.93303232]
[1758549583735,0.11401761,113360.0,113350.0,0.64667232]
[1758549583943,0.11401761,113360.0,113350.0,0.36088707]
[1758549584373,0.11401761,113360.0,113350.0,0.64732707]
[1758549584777,0.11401761,113360.0,113350.0,0.36088707]
[1758549584969,0.11401761,113360.0,113350.0,0.64732707]
[1758549589208,0.07536761,113360.0,113350.0,0.64732707]
[1758549590060,0.04760761,113360.0,113350.0,1.39754922]
[1758549590597,0.04760761,113360.0,113350.0,1.37325922]
[1758549591150,0.04760761,113360.0,113350.0,1.37017922]
[1758549591339,0.04760761,113360.0,113350.0,1.39446922]
[1758549591986,0.04760761,113360.0,113350.0,1.01365707]
[1758549592182,0.04760761,113360.0,113350.0,1.39446922]
[1758549593321,0.04760761,113360.0,113350.0,1.39754922]
[1758549594117,0.04956761,113360.0,113350.0,1.36813922]
[1758549594365,0.07536761,113360.0,113350.0,1.36785922]
[1758549594861,0.07243761,113360.0,113350.0,1.36989922]
[1758549595248,0.07243761,113360.0,113350.0,1.86989922]
[1758549595449,0.04956761,113360.0,113350.0,1.86989922]
[1758549595628,0.04956761,113360.0,113350.0,1.89418922]
[1758549596428,0.04760761,113360.0,113350.0,1.51337707]
[1758549596629,0.04760761,113360.0,113350.0,1.89726922]
[1758549597722,0.04973761,113360.0,113350.0,1.86989922]
[1758549598056,0.04760761,113360.0,113350.0,1.89612922]
[1758549599429,0.04760761,113360.0,113350.0,1.22915707]
[1758549599629,0.04760761,113360.0,113350.0,0.86088707]
[1758549599630,0.05294761,113360.0,113350.0,0.86088707]
[1758549599830,0.07729761,113360.0,113350.0,1.14744707]
[1758549601063,0.07729761,113360.0,113350.0,0.7454655]
[1758549601634,0.07729761,113360.0,113350.0,0.56902086]
[1758549602041,0.07729761,113360.0,113350.0,0.503]
[1758549602455,0.5745651,113360.0,113350.0,0.503]
[1758549602807,0.60110084,113360.0,113350.0,0.503]
[1758549603030,0.60110084,113360.0,113350.0,0.502]
[1758549603235,0.80974523,113360.0,113350.0,0.502]
[1758549603436,0.65474229,113360.0,113350.0,0.502]
[1758549603641,1.57382523,113360.0,113350.0,0.502]
[1758549603880,0.63331616,113360.0,113350.0,0.5]
[1758549604114,0.55529335,113360.0,113350.0,0.5]
[1758549604315,1.32333335,113360.0,113350.0,0.5]
[1758549604536,1.32337335,113360.0,113350.0,0.5]
[1758549604877,1.50180242,113360.0,113350.0,0.5]